bitfinex-derivatives/quotes_SOLF0:USTF0_20250505
["timestamp","ask_amount","ask_price","bid_price","bid_amount"]
[1746443964004,6.9194,144.52,144.5,6.92]
[1746443964705,6.9188,144.53,144.46,1.0]
[1746443965108,6.9188,144.53,144.5,6.9197]
[1746443966302,6.9191,144.52,144.5,6.9197]
[1746443967908,6.9188,144.53,144.46,1.0]
[1746443968309,24.54,144.54,144.46,1.0]
[1746443968705,6.9191,144.52,144.5,6.9198]
[1746443968905,24.54,144.54,144.5,6.9198]
[1746443969409,6.9187,144.53,144.5,6.9198]
[1746443970413,6.9187,144.53,144.51,6.9195]
[1746443970911,6.9187,144.53,144.48,24.54]
[1746443972317,6.9187,144.53,144.51,6.9193]
[1746443973513,6.9189,144.53,144.48,24.54]
[1746443974212,6.9189,144.53,144.5,6.9197]
[1746443974911,6.9191,144.52,144.5,6.9197]
[1746443975412,24.54,144.54,144.5,6.9197]
[1746443975712,6.9188,144.53,144.48,24.54]
[1746443975909,24.54,144.54,144.48,24.54]
[1746443977216,6.919,144.53,144.5,6.9197]
[1746443978415,6.9191,144.52,144.5,6.9197]
[1746443978914,6.9191,144.52,144.48,24.54]
[1746443979918,6.9191,144.52,144.5,6.9196]
[1746443981020,24.54,144.54,144.49,6.9204]
[1746443981522,6.9197,144.51,144.49,6.9204]
[1746443983920,4.1346,144.58,144.52,6.919]
[1746443984129,7.54673035,144.59,144.48,24.54]
[1746443984317,358.0,144.6,144.48,24.54]
[1746443984521,6.9169,144.57,144.48,24.54]
[1746443984721,358.0,144.6,144.48,24.54]
[1746443985127,6.9172,144.56,144.48,24.54]
[1746443985826,6.9172,144.56,144.54,6.9177]
[1746443986831,39.5357,144.61,144.48,24.54]
[1746443987129,7.54673035,144.54,144.46,25.52]
[1746443987829,7.54673035,144.54,144.47,6.9212]
[1746443988028,7.54673035,144.51,144.46,1.0]
[1746443988229,24.52,144.5,144.46,1.0]
[1746443988530,6.9212,144.48,144.46,1.0]
[1746443989334,6.9215,144.47,144.46,1.0]
[1746443990934,14.46793035,144.48,144.46,1.0]
[1746443991134,24.52,144.5,144.46,1.0]
[1746443991334,24.52,144.5,144.46,7.9219]
[1746443991535,6.921,144.48,144.46,1.0]
[1746443991730,24.52,144.5,144.46,1.0]
[1746443992437,24.52,144.5,144.48,6.9207]
[1746443994136,31.4402,144.5,144.48,6.9207]
[1746443994433,24.52,144.5,144.47,6.9212]
[1746443995037,31.4403,144.5,144.47,6.9212]
[1746443995839,31.4403,144.5,144.48,6.921]
[1746443996140,24.52,144.5,144.46,1.0]
[1746443996437,24.52,144.53,144.46,1.0]
[1746443996838,6.9194,144.52,144.49,6.9202]
[1746443997034,6.9194,144.52,144.46,1.0]
[1746443997339,6.9194,144.52,144.49,6.9203]
[1746443998738,24.52,144.53,144.46,1.0]
[1746443998939,7.54673035,144.55,144.47,2.1609]
[1746443999235,6.9183,144.54,144.52,6.9188]
[1746443999440,7.54673035,144.55,144.52,6.9188]
[1746443999644,24.52,144.56,144.49,24.52]
[1746444000337,6.9177,144.55,144.49,24.52]
[1746444001042,24.52,144.56,144.53,6.9182]
[1746444001743,6.9176,144.55,144.53,6.9182]
[1746444002145,24.52,144.56,144.53,6.9182]
[1746444002843,6.9176,144.55,144.53,6.9182]
[1746444004545,24.52,144.56,144.49,24.52]
[1746444005346,6.9182,144.54,144.51,6.9192]
[1746444005947,6.9182,144.54,144.52,6.919]
[1746444006347,6.9182,144.54,144.49,24.52]
[1746444006538,6.9182,144.54,144.51,6.9191]
[1746444007246,6.9187,144.53,144.51,6.9191]
[1746444007650,6.9187,144.53,144.49,24.52]
[1746444007651,7.54673035,144.55,144.48,1.9566]
[1746444007842,6.9201,144.5,144.46,25.52]
[1746444008650,6.9201,144.5,144.47,6.9214]
[1746444008947,6.9201,144.5,144.46,25.52]
[1746444009548,6.9201,144.5,144.47,6.9214]
[1746444009748,6.9201,144.5,144.46,25.52]
[1746444009949,6.9205,144.49,144.46,25.52]
[1746444010151,24.52,144.52,144.47,6.9212]
[1746444010545,6.9203,144.5,144.47,6.9212]
[1746444010948,6.9203,144.5,144.48,6.9209]
[1746444011148,6.9203,144.5,144.46,25.52]
[1746444011651,6.9203,144.5,144.47,6.9212]
[1746444011852,6.9206,144.49,144.46,1.0]
[1746444012152,6.9206,144.49,144.47,6.9212]
[1746444012550,6.9211,144.48,144.46,1.0]
[1746444012848,6.9211,144.48,144.46,7.9217]
[1746444013252,6.9207,144.49,144.46,7.9217]
[1746444015157,6.9211,144.48,144.46,7.9217]
[1746444016059,6.9206,144.49,144.46,7.9217]
[1746444018557,6.9206,144.49,144.47,6.9214]
[1746444018762,6.9206,144.49,144.46,1.0]
[1746444018953,6.9206,144.49,144.46,7.9215]
[1746444019258,6.9206,144.49,144.46,1.0]
[1746444019756,6.9206,144.49,144.47,6.9214]
[1746444020257,6.9206,144.49,144.46,7.9217]
[1746444021358,6.9206,144.49,144.47,6.9214]
[1746444021957,6.9206,144.49,144.46,7.9218]
[1746444023357,6.9206,144.49,144.47,6.9214]
[1746444024060,6.921,144.48,144.46,7.9217]
[1746444024258,24.52,144.48,144.46,1.0]
[1746444025061,6.9215,144.47,144.46,1.0]
[1746444026056,6.9215,144.47,144.46,2.0]
[1746444029563,6.9231,144.44,144.39,24.52]
[1746444029862,6.9231,144.44,144.42,6.9236]
[1746444030264,6.9227,144.45,144.42,6.9236]
[1746444030659,24.52,144.48,144.42,6.9236]
[1746444031165,6.9231,144.44,144.41,6.9241]
[1746444031465,7.54673035,144.46,144.39,24.52]
[1746444031664,6.9237,144.43,144.39,24.52]
[1746444031864,6.9237,144.43,144.41,6.9243]
[1746444033266,6.9239,144.42,144.39,24.52]
[1746444033766,24.52,144.44,144.39,6.9251]
[1746444033957,24.52,144.48,144.38,2.0583]
[1746444034162,32.06673035,144.48,144.38,2.0583]
[1746444034569,6.9226,144.45,144.43,6.9233]
[1746444034866,32.06673035,144.48,144.38,2.0583]
[1746444035166,6.9237,144.43,144.4,6.9245]
[1746444036072,6.9237,144.43,144.41,6.9243]
[1746444036670,6.9237,144.43,144.4,6.9245]
[1746444037477,6.924,144.42,144.4,6.9245]
[1746444038268,6.9237,144.43,144.4,6.9245]
[1746444038470,24.52,144.44,144.4,6.9245]
[1746444038671,6.924,144.42,144.4,6.9245]
[1746444039369,6.924,144.42,144.38,2.0583]
[1746444039575,6.9244,144.41,144.37,2.9666]
[1746444040077,6.9244,144.41,144.38,6.9257]
[1746444040574,6.9248,144.4,144.38,6.9257]
[1746444040772,6.9248,144.4,144.37,7.9259]
[1746444041276,6.9254,144.39,144.37,7.9259]
[1746444042272,31.445,144.4,144.37,7.9259]
[1746444042479,24.52,144.4,144.38,6.9258]
[1746444043774,31.4449,144.4,144.38,6.9258]
[1746444047783,24.52,144.4,144.39,6.9253]
[1746444048786,24.52,144.4,144.38,6.9256]
[1746444049784,31.4448,144.4,144.38,6.9256]
[1746444050988,31.4448,144.4,144.37,7.926]
[1746444051284,24.52,144.4,144.37,1.0]
[1746444051685,6.9258,144.38,144.37,1.0]
[1746444053088,6.9272,144.36,144.32,2.0851]
[1746444053584,6.9272,144.36,144.33,6.9279]
[1746444053792,32.06673035,144.36,144.3,1.0]
[1746444054792,6.9279,144.34,144.3,1.0]
[1746444055590,6.9279,144.34,144.31,6.929]
[1746444055894,6.9279,144.34,144.3,1.0]
[1746444056393,6.9279,144.34,144.31,6.929]
[1746444056595,6.9284,144.33,144.31,6.929]
[1746444058194,6.9287,144.32,144.3,7.9293]
[1746444058391,32.06673035,144.36,144.3,7.9293]
[1746444058792,6.9284,144.33,144.3,7.9293]
[1746444060699,6.9279,144.34,144.31,6.929]
[1746444061191,32.06673035,144.36,144.31,6.929]
[1746444061389,32.06673035,144.36,144.3,1.0]
[1746444061702,7.54673035,144.33,144.23,108.81958011]
[1746444061894,6.9299,144.3,144.24,6.2473]
[1746444062097,24.52,144.32,144.24,6.2473]
[1746444062801,24.52,144.35,144.25,32.06673035]
[1746444063200,31.4476,144.35,144.25,32.06673035]
[1746444063602,24.52,144.35,144.32,6.9282]
[1746444064204,31.4475,144.35,144.32,6.9282]
[1746444064402,24.52,144.35,144.31,6.9289]
[1746444064900,6.928,144.34,144.31,6.9289]
[1746444065404,24.52,144.35,144.25,24.52]
[1746444065907,6.9284,144.33,144.3,6.9295]
[1746444066208,7.54673035,144.33,144.25,24.52]
[1746444066505,6.9298,144.3,144.27,6.9308]
[1746444066706,6.9298,144.3,144.24,30.7673]
[1746444066901,24.52,144.31,144.24,30.7673]
[1746444067104,6.9303,144.29,144.27,6.931]
[1746444067910,6.9299,144.3,144.27,6.931]
[1746444068312,24.52,144.31,144.27,6.931]
[1746444068613,6.9297,144.3,144.27,6.931]
[1746444071008,6.9297,144.3,144.24,30.7673]
[1746444071009,6.9297,144.3,144.28,6.9306]
[1746444071210,6.9297,144.3,144.24,30.7673]
[1746444071411,6.9297,144.3,144.27,6.9308]
[1746444074513,6.9297,144.3,144.28,6.9305]
[1746444075808,6.9297,144.3,144.27,6.9308]
[1746444076016,6.9297,144.3,144.24,30.7673]
[1746444076213,6.9297,144.3,144.27,6.9308]
[1746444077118,6.9297,144.3,144.28,6.9305]
[1746444078025,6.9297,144.3,144.27,6.9309]
[1746444078616,6.9297,144.3,144.24,30.7673]
[1746444079216,6.9297,144.3,144.28,6.9303]
[1746444079421,31.4494,144.31,144.24,30.7673]
[1746444079623,24.52,144.31,144.24,30.7673]
[1746444081425,24.52,144.31,144.3,6.9296]
[1746444082626,24.52,144.31,144.29,6.9299]
[1746444082826,31.4492,144.31,144.29,6.9299]
[1746444083125,24.52,144.31,144.29,6.9299]
[1746444084327,31.4493,144.31,144.29,6.9299]
[1746444084629,24.52,144.31,144.28,6.9301]
[1746444085226,31.4495,144.31,144.28,6.9301]
[1746444085728,24.52,144.31,144.28,6.9301]
[1746444085929,6.9297,144.3,144.28,6.9301]
[1746444086232,24.52,144.31,144.28,6.9301]
[1746444086534,31.4495,144.31,144.28,6.9301]
[1746444086727,24.52,144.31,144.28,6.9301]
[1746444087834,6.9299,144.3,144.28,6.9301]
[1746444088629,6.9299,144.3,144.28,7.9301]
[1746444090226,6.9301,144.29,144.28,1.0]
[1746444096037,6.9299,144.3,144.28,7.9306]
[1746444096236,24.52,144.31,144.28,1.0]
[1746444096638,31.4493,144.31,144.29,6.9298]
[1746444099242,24.52,144.31,144.3,6.9296]
[1746444099739,24.52,144.31,144.28,1.0]
[1746444100040,31.4491,144.31,144.29,6.9296]
[1746444101344,24.52,144.31,144.3,6.9296]
[1746444101544,7.54673035,144.33,144.3,6.9296]
[1746444101746,6.9287,144.32,144.3,6.9296]
[1746444101939,7.54673035,144.33,144.3,6.9296]
[1746444102343,14.47513035,144.33,144.31,6.929]
[1746444102844,31.4678,144.34,144.32,6.9284]
[1746444103037,24.54,144.34,144.28,1.0]
[1746444103233,24.54,144.34,144.29,6.1]
[1746444104244,31.4679,144.34,144.32,6.9286]
[1746444105145,24.54,144.34,144.32,6.9286]
[1746444106942,32.08673035,144.34,144.3,6.9294]
[1746444107143,32.08673035,144.34,144.28,1.0]
[1746444107444,6.9297,144.3,144.28,1.0]
[1746444107846,6.9297,144.3,144.28,7.9302]
[1746444108745,32.08673035,144.34,144.28,7.9302]
[1746444108746,6.9294,144.31,144.28,7.9302]
[1746444109048,32.08673035,144.34,144.29,6.9299]
[1746444109253,7.54673035,144.31,144.28,1.0]
[1746444109746,32.08673035,144.34,144.28,7.9302]
[1746444110351,6.9295,144.31,144.28,7.9302]
[1746444110545,32.08673035,144.34,144.28,7.9302]
[1746444110953,6.9297,144.3,144.28,7.9302]
[1746444112449,6.9297,144.3,144.28,1.0]
[1746444112655,6.9301,144.29,144.28,1.0]
[1746444113558,6.9299,144.3,144.28,7.9305]
[1746444114861,6.9301,144.29,144.28,1.0]
[1746444115057,7.54673035,144.33,144.28,1.0]
[1746444115963,6.9299,144.3,144.28,1.0]
[1746444116359,6.9299,144.3,144.28,7.9305]
[1746444116662,6.9301,144.29,144.28,1.0]
[1746444121165,6.9298,144.3,144.28,1.0]
[1746444121468,24.54,144.33,144.28,1.0]
[1746444121663,6.9301,144.29,144.28,1.0]
[1746444121964,7.54673035,144.31,144.21,24.52]
[1746444122266,24.54,144.29,144.21,24.52]
[1746444123069,6.9311,144.27,144.25,6.9318]
[1746444123466,24.54,144.29,144.21,24.52]
[1746444123667,6.9318,144.26,144.23,6.9326]
[1746444124666,6.9318,144.26,144.24,6.9325]
[1746444125768,6.9318,144.26,144.23,6.9328]
[1746444126070,6.9318,144.26,144.21,24.52]
[1746444126267,7.54673035,144.28,144.21,24.52]
[1746444126466,7.54673035,144.28,144.24,6.9322]
[1746444127771,6.9313,144.27,144.24,6.9322]
[1746444129871,6.9317,144.26,144.24,6.9322]
[1746444130378,6.9317,144.26,144.23,6.9327]
[1746444130678,6.9317,144.26,144.21,24.52]
[1746444130971,6.9313,144.27,144.21,24.52]
[1746444131174,6.9313,144.27,144.24,6.9322]
[1746444132074,6.9313,144.27,144.21,24.52]
[1746444132075,7.54673035,144.28,144.2,6.2915]
[1746444132675,6.9324,144.25,144.22,6.9332]
[1746444132867,6.9324,144.25,144.2,6.2915]
[1746444133063,7.54673035,144.28,144.2,6.2915]
[1746444133463,6.9318,144.26,144.2,6.2915]
[1746444133971,6.9313,144.27,144.2,6.2915]
[1746444134178,24.54,144.29,144.2,6.2915]
[1746444134476,31.4704,144.29,144.26,6.9314]
[1746444134671,24.54,144.29,144.26,6.9314]
[1746444135077,31.4703,144.29,144.26,6.9314]
[1746444137177,24.54,144.29,144.27,6.9307]
[1746444137373,24.54,144.32,144.23,32.08673035]
[1746444137877,31.4687,144.32,144.23,32.08673035]
[1746444138073,24.54,144.32,144.23,32.08673035]
[1746444138376,6.9296,144.3,144.23,24.54]
[1746444138876,24.54,144.32,144.23,24.54]
[1746444139077,7.54673035,144.31,144.23,24.54]
[1746444139374,6.9304,144.29,144.26,6.9312]
[1746444139577,32.08673035,144.32,144.23,24.54]
[1746444139879,6.93,144.3,144.27,6.9308]
[1746444140178,32.08673035,144.32,144.27,6.9308]
[1746444140377,32.08673035,144.32,144.23,24.54]
[1746444140578,32.08673035,144.32,144.25,6.9317]
[1746444141079,6.9308,144.28,144.25,6.9317]
[1746444144877,6.9308,144.28,144.26,6.9314]
[1746444145079,6.9303,144.29,144.26,6.9314]
[1746444147379,6.9303,144.29,144.27,6.931]
[1746444147580,24.54,144.3,144.23,24.54]
[1746444148078,24.54,144.3,144.28,6.9302]
[1746444148279,24.54,144.3,144.23,24.54]
[1746444148784,24.54,144.3,144.28,6.9303]
[1746444149282,24.54,144.3,144.23,24.54]
[1746444150280,24.54,144.3,144.28,6.9303]
[1746444151884,31.4697,144.3,144.28,6.9303]
[1746444152078,24.54,144.3,144.29,6.9301]
[1746444152283,24.54,144.33,144.23,39.4055]
[1746444152481,31.4684,144.33,144.23,39.4055]
[1746444153881,24.54,144.33,144.23,25.54]
[1746444154079,24.54,144.36,144.25,7.54673035]
[1746444154284,24.54,144.36,144.26,6.1647]
[1746444154484,31.467,144.36,144.33,6.9279]
[1746444157485,32.08673035,144.36,144.27,24.54]
[1746444157988,6.928,144.34,144.31,6.9291]
[1746444159289,6.9282,144.33,144.31,6.9291]
[1746444160385,32.08673035,144.36,144.31,6.9291]
[1746444160590,6.9277,144.34,144.31,6.9291]
[1746444161991,6.9282,144.33,144.31,6.9291]
[1746444162694,6.928,144.34,144.31,6.9291]
[1746444162889,32.08673035,144.36,144.31,6.9291]
[1746444164195,6.9281,144.34,144.31,6.9291]
[1746444165101,6.9282,144.33,144.31,6.9291]
[1746444173511,6.928,144.34,144.31,6.9291]
[1746444177811,11.76861427,144.34,144.31,6.9291]
[1746444182616,4.84061427,144.32,144.26,6.1647]
[1746444182815,4.84061427,144.3,144.26,4.0204]
[1746444183014,11.77061427,144.3,144.27,6.9308]
[1746444183618,4.84061427,144.28,144.24,24.52]
[1746444183820,24.52,144.28,144.22,1.9738]
[1746444184518,6.9316,144.26,144.22,1.9738]
[1746444184719,24.52,144.28,144.22,1.9738]
[1746444185423,6.9319,144.26,144.23,7.9327]
[1746444185824,24.52,144.28,144.23,7.9327]
[1746444186020,6.9321,144.25,144.23,1.0]
[1746444186223,7.57135186,144.26,144.23,1.0]
[1746444186423,7.57135186,144.26,144.19,24.52]
[1746444186619,7.57135186,144.26,144.18,2.1255]
[1746444186822,7.57135186,144.23,144.16,35.70480266]
[1746444187025,6.934,144.21,144.16,35.70480266]
[1746444187217,32.09135186,144.23,144.16,35.70480266]
[1746444187721,6.9346,144.2,144.16,11.18480266]
[1746444187919,6.9346,144.2,144.17,6.9356]
[1746444188727,32.09135186,144.23,144.16,2.9749]
[1746444189027,32.09135186,144.23,144.16,1.0]
[1746444189421,6.9354,144.18,144.16,1.0]
[1746444189827,1.20734817,144.25,144.16,1.0]
[1746444189828,24.52,144.19,144.16,1.0]
[1746444190030,6.9359,144.17,144.16,1.0]
[1746444194534,14.50725186,144.17,144.16,1.0]
[1746444195036,7.57135186,144.17,144.13,1.0]
[1746444196034,6.9372,144.15,144.13,1.0]
[1746444196236,7.57135186,144.17,144.13,1.0]
[1746444196937,24.52,144.18,144.11,1.0]
[1746444196938,7.57135186,144.14,144.11,1.0]
[1746444197134,24.54,144.13,144.11,1.0]
[1746444197350,6.9383,144.12,144.11,1.0]
[1746444197534,24.54,144.13,144.11,1.0]
[1746444198232,7.57135186,144.16,144.11,1.0]
[1746444198438,6.9376,144.14,144.11,7.9386]
[1746444199541,6.937,144.15,144.12,6.9378]
[1746444199739,32.11135186,144.16,144.11,1.0]
[1746444202137,6.9371,144.15,144.12,6.938]
[1746444205350,32.11135186,144.16,144.11,7.9385]
[1746444205847,6.9375,144.14,144.11,7.9385]
[1746444206547,6.9378,144.13,144.11,7.9385]
[1746444207246,6.9378,144.13,144.11,1.0]
[1746444208147,32.11135186,144.16,144.11,1.0]
[1746444210147,6.9383,144.12,144.11,1.0]
[1746444213152,6.938,144.13,144.11,1.0]
[1746444213353,32.11135186,144.16,144.11,7.9387]
[1746444213854,6.9375,144.14,144.11,7.9387]
[1746444214257,6.9375,144.14,144.12,6.9382]
[1746444214450,6.937,144.15,144.11,1.0]
[1746444214953,6.937,144.15,144.12,6.9382]
[1746444215351,6.937,144.15,144.11,1.0]
[1746444215551,6.937,144.15,144.13,6.9377]
[1746444216955,24.54,144.16,144.11,1.0]
[1746444217453,31.4766,144.16,144.14,6.9371]
[1746444218152,24.54,144.16,144.14,6.9371]
[1746444218849,24.54,144.16,144.15,6.9368]
[1746444219055,24.56,144.19,144.11,1.0]
[1746444219255,24.56,144.2,144.12,32.13135186]
[1746444219556,31.4947,144.2,144.17,6.9356]
[1746444219753,24.56,144.2,144.13,2.0221]
[1746444219948,6.935,144.19,144.16,6.9361]
[1746444220349,24.56,144.2,144.14,2.0943]
[1746444220645,24.56,144.2,144.17,6.9354]
[1746444221156,31.4947,144.2,144.17,6.9354]
[1746444222650,24.56,144.2,144.17,6.9354]
[1746444223153,390.11135186,144.23,144.18,6.9353]
[1746444223351,24.54,144.23,144.18,6.9353]
[1746444223852,6.9342,144.21,144.18,6.9353]
[1746444224052,24.54,144.23,144.19,6.9349]
[1746444224252,6.9336,144.22,144.19,6.9349]
[1746444224459,24.54,144.23,144.19,6.9349]
[1746444224657,6.9337,144.22,144.19,6.9349]
[1746444224958,24.54,144.23,144.19,6.9349]
[1746444225253,6.9336,144.22,144.19,6.9349]
[1746444225557,24.54,144.23,144.19,6.9349]
[1746444225762,6.934,144.21,144.19,6.9349]
[1746444229562,6.9337,144.22,144.19,6.9349]
[1746444231663,6.934,144.21,144.19,6.9349]
[1746444231859,6.934,144.21,144.18,6.9351]
[1746444232858,24.54,144.23,144.18,6.9351]
[1746444233261,6.9342,144.21,144.18,6.9351]
[1746444233559,24.54,144.23,144.17,6.9355]
[1746444233860,6.9348,144.2,144.17,6.9355]
[1746444235467,6.9348,144.2,144.18,6.9354]
[1746444237171,6.9349,144.19,144.17,6.9356]
[1746444237573,24.54,144.23,144.17,6.9356]
[1746444237874,24.54,144.23,144.16,31.4761]
[1746444238274,24.54,144.23,144.16,24.54]
[1746444238572,6.9351,144.19,144.16,24.54]
[1746444238874,6.9351,144.19,144.15,2.0525]
[1746444239076,7.57135186,144.21,144.15,2.0525]
[1746444239464,7.57135186,144.21,144.16,6.936]
[1746444239465,6.9357,144.18,144.16,6.936]
[1746444239669,7.57135186,144.21,144.14,2.0943]
[1746444240177,6.9358,144.18,144.15,6.9365]
[1746444240875,6.9358,144.18,144.16,6.9362]
[1746444241171,6.935,144.19,144.14,2.0943]
[1746444241375,7.57135186,144.22,144.14,2.0943]
[1746444241566,7.57135186,144.22,144.19,6.9348]
[1746444241771,6.9342,144.21,144.19,6.9348]
[1746444242585,7.57135186,144.22,144.14,2.0943]
[1746444243283,7.57135186,144.22,144.17,6.9355]
[1746444244285,6.9349,144.19,144.17,6.9355]
[1746444244481,7.57135186,144.22,144.17,6.9355]
[1746444245180,6.9348,144.2,144.17,6.9355]
[1746444245986,6.9348,144.2,144.18,6.9353]
[1746444246783,6.9348,144.2,144.17,6.9356]
[1746444246982,6.935,144.19,144.17,6.9356]
[1746444247385,7.57135186,144.22,144.14,2.0943]
[1746444247585,6.9363,144.17,144.11,1.0]
[1746444247988,6.9356,144.18,144.11,1.0]
[1746444248192,7.57135186,144.19,144.11,1.0]
[1746444248394,7.57135186,144.19,144.12,2.0952]
[1746444248690,14.50645186,144.19,144.12,2.0952]
[1746444249294,14.50645186,144.19,144.15,6.9365]
[1746444249792,6.9355,144.18,144.15,6.9365]
[1746444254885,6.9359,144.17,144.15,6.9365]
[1746444255195,7.57135186,144.19,144.15,6.9365]
[1746444255395,6.9356,144.18,144.15,6.9365]
[1746444258602,6.9359,144.17,144.15,6.9365]
[1746444261404,6.9356,144.18,144.15,6.9365]
[1746444261606,7.57135186,144.19,144.13,6.9376]
[1746444261906,7.57135186,144.19,144.12,26.6352]
[1746444262092,6.9363,144.17,144.12,26.6352]
[1746444262294,7.57135186,144.19,144.14,6.937]
[1746444263205,6.9361,144.17,144.14,6.937]
[1746444263904,6.9364,144.16,144.14,6.937]
[1746444264405,6.9361,144.17,144.14,6.937]
[1746444265702,7.57135186,144.19,144.12,26.6352]
[1746444265908,6.9351,144.19,144.12,26.6352]
[1746444266410,6.9351,144.19,144.16,6.9361]
[1746444267404,6.9351,144.19,144.17,6.9357]
[1746444267709,6.9351,144.19,144.12,26.6352]
[1746444268008,6.9351,144.19,144.16,6.9359]
[1746444268808,6.9351,144.19,144.17,6.9358]
[1746444269907,6.9351,144.19,144.16,6.9361]
[1746444270117,6.9351,144.19,144.12,26.6352]
[1746444271910,6.9351,144.19,144.16,6.9361]
[1746444272809,24.54,144.21,144.12,26.6352]
[1746444273410,31.4742,144.21,144.18,6.9349]
[1746444273613,7.57135186,144.22,144.12,40.5115]
[1746444273913,6.9339,144.22,144.13,24.68]
[1746444274414,6.9339,144.22,144.18,6.9349]
[1746444274613,6.934,144.21,144.18,6.9349]
[1746444275012,6.9337,144.22,144.19,6.9348]
[1746444275718,24.68,144.24,144.19,6.9348]
[1746444276221,24.68,144.24,144.17,28.6934]
[1746444276718,6.9333,144.23,144.2,6.934]
[1746444277315,24.68,144.24,144.17,28.6934]
[1746444277316,31.6127,144.24,144.17,28.6934]
[1746444277523,24.68,144.27,144.17,36.26475186]
[1746444277917,6.9317,144.26,144.23,6.9325]
[1746444278118,24.68,144.27,144.21,24.68]
[1746444278321,24.68,144.27,144.22,4.2153]
[1746444278514,31.6113,144.27,144.24,6.9322]
[1746444278915,6.9313,144.27,144.24,6.9322]
[1746444279922,6.9316,144.26,144.24,6.9322]
[1746444280121,6.9316,144.26,144.23,6.9327]
[1746444280721,6.9316,144.26,144.24,6.9325]
[1746444280923,6.9316,144.26,144.22,4.2153]
[1746444281423,6.9316,144.26,144.23,6.9326]
[1746444283522,6.9316,144.26,144.22,4.2153]
[1746444283925,6.9316,144.26,144.23,6.9326]
[1746444284536,6.9316,144.26,144.22,4.2153]
[1746444284833,24.68,144.3,144.22,4.2153]
[1746444285335,24.68,144.3,144.24,6.9324]
[1746444286132,6.9314,144.27,144.24,6.9324]
[1746444288527,6.9316,144.26,144.24,6.9324]
[1746444288730,24.68,144.3,144.24,6.9324]
[1746444289339,6.9313,144.27,144.24,6.9324]
[1746444289639,24.68,144.3,144.26,6.9315]
[1746444289943,31.61,144.3,144.22,6.3783]
[1746444290239,6.93,144.3,144.27,6.9308]
[1746444292543,6.9302,144.29,144.26,6.9313]
[1746444293141,26.8313,144.33,144.25,6.9318]
[1746444293338,7.57135186,144.31,144.23,24.66]
[1746444293836,6.9313,144.27,144.24,6.9321]
[1746444294843,6.9315,144.26,144.24,6.9321]
[1746444295443,6.9315,144.26,144.23,31.5928]
[1746444297840,6.9321,144.25,144.23,24.66]
[1746444298744,6.9318,144.26,144.23,31.5927]
[1746444299143,24.52,144.29,144.23,31.5927]
[1746444299345,6.9319,144.26,144.23,31.5927]
[1746444300843,6.9321,144.25,144.23,31.5927]
[1746444301034,24.52,144.29,144.23,31.5927]
[1746444301344,24.52,144.29,144.23,24.66]
[1746444301847,6.9318,144.26,144.23,24.66]
[1746444302045,6.9318,144.26,144.23,31.5927]
[1746444303248,6.9318,144.26,144.24,6.9324]
[1746444304643,6.9313,144.27,144.24,6.9324]
[1746444304850,6.9313,144.27,144.25,6.932]